Workbook

Sheet T3 Belts Calculator
A1: 5mm GT2 Pulleys | F1: 5mm HTD/GT3 Belts (includes belts listed in this spreadsheet) | K1: TRUCK TOWN THUNDER | BELT CALCULATOR | U1: VexPro | V1: mcmaster
A2: Groove Count | B2: Pitch Diameter | C2: Outer Diameter | D2: 15.95817 | F2: # of Teeth | G2: Length (mm) | H2: Length (in) | I2: Gates PN | U2: 60 | V2: =37 -> 37
A3: 18 | B3: 1.128 | C3: 1.083 | D3: Grooves / In | F3: 45 | G3: 225 | H3: =G3*0.0393701 -> 8.8582725 | I3: 300- | K3: Pulley 1 | N3: Pulley 2 | Q3: Center Distance | U3: 70 | V3: =43 -> 43
A4: 19 | B4: 1.191 | C4: 1.146 | F4: 54 | G4: 270 | H4: 10.629927 | I4: 355- | K4: Groove Count | L4: 18 | N4: Groove Count | O4: 32 | Q4: Desired Center (in) | R4: 5 | U4: 80 | V4: 53
A5: 20 | B5: 1.253 | C5: 1.208 | D5: 0.04473 | F5: 60 | G5: 300 | H5: 11.81103 | I5: 375- | K5: Outer Diameter | L5: =IF(L6="","",IF(R8="3mm",L6-D42,L6-D5)) -> 1.083218881 | N5: Outer Diameter | O5: =IF(O6="","",IF(R8="3mm",O6-D42,O6-D5)) -> 1.960512456 | Q5: Center Add | R5: 0.002 | U5: 90 | V5: 61
A6: 21 | B6: 1.316 | C6: 1.271 | D6: Belt Thickness (IN) | F6: 70 | G6: 350 | H6: 13.779535 | I6: 400- | K6: Pitch Diameter | L6: =IF(L4="","",IF(R8="3mm",L4/C42,L4/D2)) -> 1.127948881 | N6: Pitch Diameter | O6: =IF(O4="","",IF(R8="3mm",O4/C42,O4/D2)) -> 2.005242456 | Q6: Ratio | R6: =IFERROR(IF(O4>L4,CONCATENATE(ROUND(O4/L4,3),":1"),CONCATENATE("1:",ROUND(L4/O4,3))),"") -> 1.778:1 | U6: 100 | V6: 92
A7: 22 | B7: 1.379 | C7: 1.334 | F7: 75 | G7: 375 | H7: 14.7637875 | I7: 405- | Q7: Belt Width | R7: 9mm | U7: 104 | V7: 75
A8: 23 | B8: 1.441 | C8: 1.396 | F8: 80 | G8: 400 | H8: 15.74804 | I8: 425- | K8: Larger Belt Choice | N8: Smaller Belt Choice | Q8: Belt Pitch | R8: 5mm | U8: 110 | V8: 80
A9: 24 | B9: 1.504 | C9: 1.459 | F9: 90 | G9: 450 | H9: 17.716545 | I9: 450- | K9: # of Teeth | L9: 80 | N9: # of Teeth | O9: 75 | U9: 120 | V9: 95
A10: 25 | B10: 1.567 | C10: 1.522 | F10: 100 | G10: 500 | H10: 19.68505 | I10: 500- | K10: Center Distance | L10: 5.397372054 | N10: Center Distance | O10: 4.903445933 | U10: 130 | V10: 98
A11: 26 | B11: 1.629 | C11: 1.584 | F11: 104 | G11: 520 | H11: 20.472452 | I11: 535- | K11: P1 Teeth in Mesh | L11: 8.533840576 | N11: P1 Teeth in Mesh | O11: 8.486763962 | U11: 140 | V11: 100
A12: 28 | B12: 1.755 | C12: 1.71 | F12: 110 | G12: 550 | H12: 21.653555 | I12: 565- | K12: P2 Teeth in Mesh | L12: 16.82872787 | N12: P2 Teeth in Mesh | O12: 16.91241962 | U12: 150 | V12: 104
A13: 30 | B13: 1.88 | C13: 1.835 | F13: 120 | G13: 600 | H13: 23.62206 | I13: 575- | U13: 160 | V13: 110
A14: 32 | B14: 2.005 | C14: 1.96 | F14: 130 | G14: 650 | H14: 25.590565 | I14: 580- | U14: 170 | V14: 129
A15: 34 | B15: 2.131 | C15: 2.086 | F15: 140 | G15: 700 | H15: 27.55907 | I15: 600- | U15: 180 | V15: 134
A16: 36 | B16: 2.256 | C16: 2.211 | F16: 150 | G16: 750 | H16: 29.527575 | I16: 625- | U16: 200 | V16: 140
A17: 38 | B17: 2.381 | C17: 2.336 | F17: 160 | G17: 800 | H17: 31.49608 | I17: 650- | U17: 225 | V17: 148
A18: 40 | B18: 2.507 | C18: 2.462 | F18: 170 | G18: 850 | H18: 33.464585 | I18: 700- | U18: 250 | V18: 150
A19: 44 | B19: 2.757 | C19: 2.712 | F19: 180 | G19: 900 | H19: 35.43309 | I19: 750- | V19: 151
A20: 45 | B20: 2.82 | C20: 2.775 | F20: 200 | G20: 1000 | H20: 39.3701 | I20: 800- | V20: 160
A21: 48 | B21: 3.008 | C21: 2.963 | F21: 225 | G21: 1125 | H21: 44.2913625 | I21: 815- | V21: 200
A22: 50 | B22: 3.133 | C22: 3.088 | F22: 250 | G22: 1250 | H22: 49.212625 | I22: 850- | V22: 284
A23: 52 | B23: 3.259 | C23: 3.214 | F23: 259 | G23: 1295 | H23: 50.9842795 | I23: 900- | V23: 285
A24: 56 | B24: 3.509 | C24: 3.464 | F24: 315 | G24: 1575 | H24: 62.0079075 | I24: 1000-
A25: 60 | B25: 3.76 | C25: 3.715 | F25: 320 | G25: 1600 | H25: 62.99216 | I25: 1150-
A26: 64 | B26: 4.01 | C26: 3.965 | F26: 344 | G26: 1720 | H26: 67.716572 | I26: 1300-
A27: 68 | B27: 4.261 | C27: 4.216 | F27: 351 | G27: 1755 | H27: 69.0945255 | I27: 1450-
F28: 420 | G28: 2100 | H28: 82.67721 | I28: 1600-
F29: 344 | G29: 1720 | H29: 67.72 | I29: 1720-
F30: 351 | G30: 1755 | H30: 69.09 | I30: 1755-
F31: 420 | G31: 2100 | H31: 82.68 | I31: 2100-
D34: Belt Pitches | F34: Belt Widths
D35: 3mm | E35: 3M | F35: 9mm | G35: 09
D36: 5mm | E36: 5M | F36: 15mm | G36: 15
F37: 25mm | G37: 25
F39: Vlookup | G39: =VLOOKUP(R7,F35:G37,2,0) -> 09
A42: 3mm GT2 Pulleys | C42: 26.61551 | D42: 0.028436
A43: Grooves | B43: Pitch Diameter | C43: Outer Diameter | F43: 3mm GT3 Belts
A44: 9 | B44: 8.6 | F44: # of Teeth | G44: Length (mm) | H44: Length (in) | I44: Gates PN
A45: 10 | B45: 9.5 | F45: 33 | G45: =F45*3 -> 99 | H45: =G45/25.4 -> 3.897637795 | I45: =CONCATENATE(G45,"-") -> 99-
A46: 11 | B46: 10.5 | F46: 35 | G46: 105 | H46: 4.133858268 | I46: 105-
A47: 12 | B47: 11.5 | F47: 37 | G47: 111 | H47: 4.37007874 | I47: 111-
A48: 13 | B48: 12.4 | F48: 40 | G48: 120 | H48: 4.724409449 | I48: 120-
A49: 14 | B49: 13.4 | F49: 41 | G49: 123 | H49: 4.842519685 | I49: 123-
A50: 15 | B50: 14.3 | F50: 43 | G50: 129 | H50: 5.078740157 | I50: 129-
A51: 16 | B51: 15.3 | F51: 45 | G51: 135 | H51: 5.31496063 | I51: 135-
A52: 17 | B52: 16.2 | F52: 48 | G52: 144 | H52: 5.669291339 | I52: 144-
A53: 18 | B53: 17.2 | F53: 50 | G53: 150 | H53: 5.905511811 | I53: 150-
A54: 19 | B54: 18.1 | F54: 53 | G54: 159 | H54: 6.25984252 | I54: 159-
A55: 20 | B55: 19.1 | F55: 54 | G55: 162 | H55: 6.377952756 | I55: 162-
A56: 21 | B56: 20.1 | F56: 55 | G56: 165 | H56: 6.496062992 | I56: 165-
A57: 22 | B57: 21 | F57: 58 | G57: 174 | H57: 6.850393701 | I57: 174-
A58: 23 | B58: 22 | F58: 59 | G58: 177 | H58: 6.968503937 | I58: 177-
A59: 24 | B59: 22.9 | F59: 60 | G59: 180 | H59: 7.086614173 | I59: 180-
A60: 25 | B60: 23.9 | F60: 61 | G60: 183 | H60: 7.204724409 | I60: 183-
A61: 26 | B61: 24.8 | F61: 62 | G61: 186 | H61: 7.322834646 | I61: 186-
A62: 27 | B62: 25.8 | F62: 63 | G62: 189 | H62: 7.440944882 | I62: 189-
A63: 28 | B63: 26.7 | F63: 64 | G63: 192 | H63: 7.559055118 | I63: 192-
A64: 29 | B64: 27.7 | F64: 65 | G64: 195 | H64: 7.677165354 | I64: 195-
A65: 30 | B65: 28.6 | F65: 66 | G65: 198 | H65: 7.795275591 | I65: 198-
A66: 31 | B66: 29.6 | F66: 67 | G66: 201 | H66: 7.913385827 | I66: 201-
A67: 32 | B67: 30.6 | F67: 68 | G67: 204 | H67: 8.031496063 | I67: 204-
A68: 33 | B68: 31.5 | F68: 70 | G68: 210 | H68: 8.267716535 | I68: 210-
A69: 34 | B69: 32.5 | F69: 72 | G69: 216 | H69: 8.503937008 | I69: 216-
A70: 35 | B70: 33.4 | F70: 73 | G70: 219 | H70: 8.622047244 | I70: 219-
A71: 36 | B71: 34.4 | F71: 75 | G71: 225 | H71: 8.858267717 | I71: 225-
A72: 37 | B72: 35.3 | F72: 77 | G72: 231 | H72: 9.094488189 | I72: 231-
A73: 38 | B73: 36.3 | F73: 78 | G73: 234 | H73: 9.212598425 | I73: 234-
A74: 39 | B74: 37.2 | F74: 80 | G74: 240 | H74: 9.448818898 | I74: 240-
A75: 40 | B75: 38.2 | F75: 81 | G75: 243 | H75: 9.566929134 | I75: 243-
A76: 42 | B76: 40.1 | F76: 82 | G76: 246 | H76: 9.68503937 | I76: 246-
A77: 44 | B77: 42 | F77: 84 | G77: 252 | H77: 9.921259843 | I77: 252-
A78: 45 | B78: 43 | F78: 85 | G78: 255 | H78: 10.03937008 | I78: 255-
A79: 48 | B79: 45.8 | F79: 89 | G79: 267 | H79: 10.51181102 | I79: 267-
A80: 50 | B80: 47.7 | F80: 90 | G80: 270 | H80: 10.62992126 | I80: 270-
A81: 52 | B81: 49.7 | F81: 92 | G81: 276 | H81: 10.86614173 | I81: 276-
A82: 54 | B82: 51.6 | F82: 94 | G82: 282 | H82: 11.1023622 | I82: 282-
A83: 56 | B83: 53.5 | F83: 95 | G83: 285 | H83: 11.22047244 | I83: 285-
A84: 60 | B84: 57.3 | F84: 96 | G84: 288 | H84: 11.33858268 | I84: 288-
A85: 62 | B85: 59.2 | F85: 97 | G85: 291 | H85: 11.45669291 | I85: 291-
A86: 64 | B86: 61.1 | F86: 98 | G86: 294 | H86: 11.57480315 | I86: 294-
A87: 66 | B87: 63 | F87: 100 | G87: 300 | H87: 11.81102362 | I87: 300-
A88: 68 | B88: 64.9 | F88: 101 | G88: 303 | H88: 11.92913386 | I88: 303-
A89: 70 | B89: 66.8 | F89: 103 | G89: 309 | H89: 12.16535433 | I89: 309-
A90: 72 | B90: 66.8 | F90: 104 | G90: 312 | H90: 12.28346457 | I90: 312-
A91: 75 | B91: 71.6 | F91: 108 | G91: 324 | H91: 12.75590551 | I91: 324-
A92: 80 | B92: 76.4 | F92: 110 | G92: 330 | H92: 12.99212598 | I92: 330-
A93: 90 | B93: 85.9 | F93: 113 | G93: 339 | H93: 13.34645669 | I93: 339-
A94: 100 | B94: 95.5 | F94: 116 | G94: 348 | H94: 13.7007874 | I94: 348-
A95: 110 | B95: 105 | F95: 118 | G95: 354 | H95: 13.93700787 | I95: 354-
A96: 120 | B96: 114.6 | F96: 119 | G96: 357 | H96: 14.05511811 | I96: 357-
A97: 130 | B97: 124.1 | F97: 120 | G97: 360 | H97: 14.17322835 | I97: 360-
A98: 140 | B98: 133.7 | F98: 121 | G98: 363 | H98: 14.29133858 | I98: 363-
A99: 150 | B99: 143.2 | F99: 125 | G99: 375 | H99: 14.76377953 | I99: 375-
A100: 160 | B100: 152.8 | F100: 128 | G100: 384 | H100: 15.11811024 | I100: 384-
F101: 129 | G101: 387 | H101: 15.23622047 | I101: 387-
F102: 130 | G102: 390 | H102: 15.35433071 | I102: 390-
F103: 131 | G103: 393 | H103: 15.47244094 | I103: 393-
F104: 133 | G104: 399 | H104: 15.70866142 | I104: 399-
F105: 136 | G105: 408 | H105: 16.06299213 | I105: 408-
F106: 138 | G106: 414 | H106: 16.2992126 | I106: 414-
F107: 140 | G107: 420 | H107: 16.53543307 | I107: 420-
F108: 148 | G108: 444 | H108: 17.48031496 | I108: 444-
F109: 149 | G109: 447 | H109: 17.5984252 | I109: 447-
F110: 150 | G110: 450 | H110: 17.71653543 | I110: 450-
F111: 152 | G111: 456 | H111: 17.95275591 | I111: 456-
F112: 158 | G112: 474 | H112: 18.66141732 | I112: 474-
F113: 160 | G113: 480 | H113: 18.8976378 | I113: 480-
F114: 161 | G114: 483 | H114: 19.01574803 | I114: 483-
F115: 163 | G115: 489 | H115: 19.2519685 | I115: 489-
F116: 165 | G116: 495 | H116: 19.48818898 | I116: 495-
F117: 167 | G117: 501 | H117: 19.72440945 | I117: 501-
F118: 168 | G118: 504 | H118: 19.84251969 | I118: 504-
F119: 170 | G119: 510 | H119: 20.07874016 | I119: 510-
F120: 171 | G120: 513 | H120: 20.19685039 | I120: 513-
F121: 174 | G121: 522 | H121: 20.5511811 | I121: 522-
F122: 179 | G122: 537 | H122: 21.14173228 | I122: 537-
F123: 180 | G123: 540 | H123: 21.25984252 | I123: 540-
F124: 184 | G124: 552 | H124: 21.73228346 | I124: 552-
F125: 187 | G125: 561 | H125: 22.08661417 | I125: 561-
F126: 188 | G126: 564 | H126: 22.20472441 | I126: 564-
F127: 190 | G127: 570 | H127: 22.44094488 | I127: 570-
F128: 194 | G128: 582 | H128: 22.91338583 | I128: 582-
F129: 196 | G129: 588 | H129: 23.1496063 | I129: 588-
F130: 200 | G130: 600 | H130: 23.62204724 | I130: 600-
F131: 207 | G131: 621 | H131: 24.4488189 | I131: 621-
F132: 210 | G132: 630 | H132: 24.80314961 | I132: 630-
F133: 219 | G133: 657 | H133: 25.86614173 | I133: 657-
F134: 228 | G134: 684 | H134: 26.92913386 | I134: 684-
F135: 232 | G135: 696 | H135: 27.4015748 | I135: 696-
F136: 245 | G136: 735 | H136: 28.93700787 | I136: 735-
F137: 250 | G137: 750 | H137: 29.52755906 | I137: 750-
F138: 262 | G138: 786 | H138: 30.94488189 | I138: 786-
F139: 280 | G139: 840 | H139: 33.07086614 | I139: 840-
F140: 283 | G140: 849 | H140: 33.42519685 | I140: 849-
F141: 299 | G141: 897 | H141: 35.31496063 | I141: 897-
F142: 308 | G142: 924 | H142: 36.37795276 | I142: 924-
F143: 315 | G143: 945 | H143: 37.20472441 | I143: 945-
F144: 350 | G144: 1050 | H144: 41.33858268 | I144: 1050-
F145: 360 | G145: 1080 | H145: 42.51968504 | I145: 1080-
F146: 424 | G146: 1272 | H146: 50.07874016 | I146: 1272-
F147: 512 | G147: 1536 | H147: 60.47244094 | I147: 1536-
F148: 529 | G148: 1587 | H148: 62.48031496 | I148: 1587-
F149: 555 | G149: 1665 | H149: 65.5511811 | I149: 1665-
F150: 564 | G150: 1692 | H150: 66.61417323 | I150: 1692-
F151: 687 | G151: 2061 | H151: 81.14173228 | I151: 2061-
F152: 820 | G152: 2460 | H152: 96.8503937 | I152: 2460-

Sheet T3 Chain Calculator
B1: TRUCK TOWN THUNDER | CHAIN CALCULATOR | L1: z
B3: Sprocket 1 | E3: Sprocket 2 | H3: Center Distance
B4: Tooth Count | C4: 18 | E4: Tooth Count | F4: 32 | H4: Desired Center (in) | I4: 6.101
B5: Outer Diameter | C5: =$M$14*(0.6 + 1 / TAN(RADIANS(180/C4))) -> 1.567820455 | E5: Outer Diameter | F5: =$M$14*(0.6 + 1 / TAN(RADIANS(180/F4))) -> 2.688292597 | H5: Center Add | I5: -0.005
B6: Pitch Diameter | C6: =$M$14/SIN(RADIANS(180/C4)) -> 1.439692621 | E6: Pitch Diameter | F6: =$M$14/SIN(RADIANS(180/F4)) -> 2.550574309 | H6: Ratio | I6: =IFERROR(IF(F4>C4,CONCATENATE(ROUND(F4/C4,3),":1"),CONCATENATE("1:",ROUND(C4/F4,3))),"") -> 1.778:1
H7: Chain Pitch | I7: #25 Chain
B8: Ideal Chain | E8: Chain with Half Link
B9: # of Links | C9: =IF(P19=ODD(P19),P28,P19) -> 74 | E9: # of Links | F9: =IF(P19=ODD(P19),P19,P28) -> 75 | H9: Avoid Odd Number of Links When Possible. Additional Side Clearance Required for Half Link.
B10: Center Distance | C10: =IF(P19=ODD(P19),P26+I5,P22+I5) -> 6.094564074 | E10: Center Distance | F10: =IF(P19=ODD(P19),P22+I5,P26+I5) -> 6.220076924
B11: Cut Chain Length | C11: =IF(P19=ODD(P19),P32,P23) -> 18.25 | E11: Cut Chain Length | F11: =IF(P19=ODD(P19),P23,P32) -> 18.25
B13: =IFERROR(IF(P37<0, "Desired center too small!", ""),"") ->  | E13: =IFERROR(IF(P38<0, "Desired center too small!", ""),"") -> 
L14: p = pitch | M14: =IF($I$7="#25 Chain",0.25,IF($I$7="#35 Chain",0.375,IF($I$7="Bike Chain",0.5,""))) -> 0.25 | N14: 0.25 | O14: 0.25 | P14: 0.25
L15: t1 = teeth(1) | M15: =$C$4 -> 18 | N15: 18 | O15: 18 | P15: 18
L16: t2 = teeth(2) Larger | M16: =$F$4 -> 32 | N16: 32 | O16: 32 | P16: 32
L17: cd = center distance | M17: =I4 -> 6.101 | N17: =M22 -> 6.09957006 | O17: 6.099564099 | P17: 6.099564074
B18: =IFERROR(IF(AND(P21<=0.0005,P21>=-0.0005), "", "Final Iteration Not Complete!"),"") ->  | E18: =IFERROR(IF(AND(P30<=0.0005,P30>=-0.0005), "", "Final Iteration Not Complete!"),"") ->  | L18: L= Length | M18: =(M14/2)*(M15+M16)+(2*M17)+(1/(4*M17))*((M16-M15)*(M14/PI()))^2 -> 18.50285988 | N18: 18.50001192 | O18: 18.50000005 | P18: 18.5
L19: l = Links* | M19: =ROUNDDOWN(M18/M14,0) -> 74 | N19: 74 | O19: 74 | P19: 74
L20: Chain Target length | M20: =M19*M14 -> 18.5 | N20: 18.5 | O20: 18.5 | P20: 18.5
L21: Difference | M21: =(M20-M18)/2 -> -0.001429939756 | N21: -5.961613933e-06 | O21: -2.486063444e-08 | P21: -1.036699615e-10
L22: New Center Distance | M22: =M17+M21 -> 6.09957006 | N22: 6.099564099 | O22: 6.099564074 | P22: 6.099564074
L23: Chain Cut Length | P23: =IF(P19=ODD(P19),P14*(P19-2),P14*(P19-1)) -> 18.25
L25: Alternate !!
L26: Center Distance | M26: =P17+M14/2 -> 6.224564074 | N26: =M31 -> 6.225074871 | O26: 6.225076916 | P26: 6.225076924
L27: Length | M27: =M14/2*(M15+M16)+2*M26+1/(4*M26)*((M16-M15)*M14/PI())^2 -> 18.74897841 | N27: 18.74999591 | O27: 18.74999998 | P27: 18.75
L28: Links | M28: =M19+1 -> 75 | N28: 75 | O28: 75 | P28: 75
L29: Chain Target length | M29: =M28*M14 -> 18.75 | N29: 18.75 | O29: 18.75 | P29: 18.75
L30: Difference | M30: =(M29-M27)/2 -> 0.0005107972396 | N30: 2.045226339e-06 | O30: 8.188388634e-09 | P30: 3.278088911e-11
L31: New Center Distance | M31: =M26+M30 -> 6.225074871 | N31: 6.225076916 | O31: 6.225076924 | P31: 6.225076924
L32: Chain Cut Length | P32: =IF(P28=ODD(P28),M14*(P28-2),M14*(P28-1)) -> 18.25
L34: tooth r1 | M34: =M$14*(0.6+1/TAN(PI()/M15))/2 -> 0.7839102275 | N34: 0.7839102275 | O34: 0.7839102275 | P34: 0.7839102275
L35: tooth r2 | M35: =M$14*(0.6+1/TAN(PI()/M16))/2 -> 1.344146298 | N35: 1.344146298 | O35: 1.344146298 | P35: 1.344146298
L36: min cd | M36: =SUM(M34:M35) -> 2.128056526 | N36: 2.128056526 | O36: 2.128056526 | P36: 2.128056526
L37: tooth to tooth clearance # | P37: =P17-P36 -> 3.971507548
L38: altrnate t to t clearance # | P38: =P26-P36 -> 4.097020399
